Workbook

Sheet Forecast Input
B2: [Company Name]
B3: Detailed Sales Forecast
B4: Company Confidential
B6: Instructions: Enter values into the white and yellow cells only.
B7: Opportunity Name | C7: Sales Agent | D7: Sales Region | E7: Sales Category | F7: Forecast Amount | G7: Sales Phase | H7: Probability of Sale | I7: Year | J7: Forecast Close | K7: Timeline | L7: Weighted Forecast | M7: Running Total
B8: A. Datum Corporation | C8: Sales Agent 1 | D8: US - Northeast | E8: Consulting | F8: $150,000 | G8: Formal Approval | H8: 90% | I8: 2013 | J8: January | K8: =DATE(tblData[[#This Row],[Year]],LOOKUP(tblData[[#This Row],[Forecast Close]],{"April",4;"August",8;"December",12;"February",2;"January",1;"July",7;"June",6;"March",3;"May",5;"November",11;"October",10;"September",9}),1) -> 2013-01-01 | L8: =tblData[[#This Row],[Forecast Amount]]*tblData[[#This Row],[Probability of Sale]] -> $135,000 | M8: =SUMIF(tblData[Timeline],"<="&tblData[[#This Row],[Timeline]],tblData[Weighted Forecast]) -> $151,600
B9: Fabrikam, Inc. | C9: Sales Agent 4 | D9: EMEA - Other | E9: Consulting | F9: $166,000 | G9: Opportunity | H9: 10% | I9: 2013 | J9: January | K9: =DATE(tblData[[#This Row],[Year]],LOOKUP(tblData[[#This Row],[Forecast Close]],{"April",4;"August",8;"December",12;"February",2;"January",1;"July",7;"June",6;"March",3;"May",5;"November",11;"October",10;"September",9}),1) -> 2013-01-01 | L9: =tblData[[#This Row],[Forecast Amount]]*tblData[[#This Row],[Probability of Sale]] -> $16,600 | M9: =SUMIF(tblData[Timeline],"<="&tblData[[#This Row],[Timeline]],tblData[Weighted Forecast]) -> $151,600
B10: Adventure Works | C10: Sales Agent 2 | D10: US - Southeast | E10: Products | F10: $145,200 | G10: Opportunity | H10: 10% | I10: 2013 | J10: February | K10: =DATE(tblData[[#This Row],[Year]],LOOKUP(tblData[[#This Row],[Forecast Close]],{"April",4;"August",8;"December",12;"February",2;"January",1;"July",7;"June",6;"March",3;"May",5;"November",11;"October",10;"September",9}),1) -> 2013-02-01 | L10: =tblData[[#This Row],[Forecast Amount]]*tblData[[#This Row],[Probability of Sale]] -> $14,520 | M10: =SUMIF(tblData[Timeline],"<="&tblData[[#This Row],[Timeline]],tblData[Weighted Forecast]) -> $311,920
B11: Northwind Traders | C11: Sales Agent 3 | D11: US - South Central | E11: Prof. Services | F11: $162,000 | G11: Verbal Approval | H11: 90% | I11: 2013 | J11: February | K11: =DATE(tblData[[#This Row],[Year]],LOOKUP(tblData[[#This Row],[Forecast Close]],{"April",4;"August",8;"December",12;"February",2;"January",1;"July",7;"June",6;"March",3;"May",5;"November",11;"October",10;"September",9}),1) -> 2013-02-01 | L11: =tblData[[#This Row],[Forecast Amount]]*tblData[[#This Row],[Probability of Sale]] -> $145,800 | M11: =SUMIF(tblData[Timeline],"<="&tblData[[#This Row],[Timeline]],tblData[Weighted Forecast]) -> $311,920
B12: Alpine Ski House | C12: Sales Agent 3 | D12: US - North Central | E12: Training | F12: $162,500 | G12: Identified Need | H12: 20% | I12: 2013 | J12: March | K12: =DATE(tblData[[#This Row],[Year]],LOOKUP(tblData[[#This Row],[Forecast Close]],{"April",4;"August",8;"December",12;"February",2;"January",1;"July",7;"June",6;"March",3;"May",5;"November",11;"October",10;"September",9}),1) -> 2013-03-01 | L12: =tblData[[#This Row],[Forecast Amount]]*tblData[[#This Row],[Probability of Sale]] -> $32,500 | M12: =SUMIF(tblData[Timeline],"<="&tblData[[#This Row],[Timeline]],tblData[Weighted Forecast]) -> $555,420
B13: Fourth Coffee | C13: Sales Agent 3 | D13: APSA - Asia | E13: Training | F13: $180,000 | G13: Budget Validated | H13: 30% | I13: 2013 | J13: March | K13: =DATE(tblData[[#This Row],[Year]],LOOKUP(tblData[[#This Row],[Forecast Close]],{"April",4;"August",8;"December",12;"February",2;"January",1;"July",7;"June",6;"March",3;"May",5;"November",11;"October",10;"September",9}),1) -> 2013-03-01 | L13: =tblData[[#This Row],[Forecast Amount]]*tblData[[#This Row],[Probability of Sale]] -> $54,000 | M13: =SUMIF(tblData[Timeline],"<="&tblData[[#This Row],[Timeline]],tblData[Weighted Forecast]) -> $555,420
B14: Proseware, Inc. | C14: Sales Agent 4 | D14: Canada - East | E14: Mixture | F14: $157,000 | G14: Formal Approval | H14: 100% | I14: 2013 | J14: March | K14: =DATE(tblData[[#This Row],[Year]],LOOKUP(tblData[[#This Row],[Forecast Close]],{"April",4;"August",8;"December",12;"February",2;"January",1;"July",7;"June",6;"March",3;"May",5;"November",11;"October",10;"September",9}),1) -> 2013-03-01 | L14: =tblData[[#This Row],[Forecast Amount]]*tblData[[#This Row],[Probability of Sale]] -> $157,000 | M14: =SUMIF(tblData[Timeline],"<="&tblData[[#This Row],[Timeline]],tblData[Weighted Forecast]) -> $555,420
B15: Baldwin Museum of Science | C15: Sales Agent 4 | D15: US - South Central | E15: Mixture | F15: $147,500 | G15: Sponsorship | H15: 30% | I15: 2013 | J15: April | K15: =DATE(tblData[[#This Row],[Year]],LOOKUP(tblData[[#This Row],[Forecast Close]],{"April",4;"August",8;"December",12;"February",2;"January",1;"July",7;"June",6;"March",3;"May",5;"November",11;"October",10;"September",9}),1) -> 2013-04-01 | L15: =tblData[[#This Row],[Forecast Amount]]*tblData[[#This Row],[Probability of Sale]] -> $44,250 | M15: =SUMIF(tblData[Timeline],"<="&tblData[[#This Row],[Timeline]],tblData[Weighted Forecast]) -> $668,870
B16: School of Fine Art | C16: Sales Agent 3 | D16: EMEA - France | E16: Services | F16: $173,000 | G16: Budget Validated | H16: 40% | I16: 2013 | J16: April | K16: =DATE(tblData[[#This Row],[Year]],LOOKUP(tblData[[#This Row],[Forecast Close]],{"April",4;"August",8;"December",12;"February",2;"January",1;"July",7;"June",6;"March",3;"May",5;"November",11;"October",10;"September",9}),1) -> 2013-04-01 | L16: =tblData[[#This Row],[Forecast Amount]]*tblData[[#This Row],[Probability of Sale]] -> $69,200 | M16: =SUMIF(tblData[Timeline],"<="&tblData[[#This Row],[Timeline]],tblData[Weighted Forecast]) -> $668,870
B17: Blue Yonder Airlines | C17: Sales Agent 5 | D17: US - Northwest | E17: Prof. Services | F17: $148,000 | G17: Budget Validated | H17: 40% | I17: 2013 | J17: May | K17: =DATE(tblData[[#This Row],[Year]],LOOKUP(tblData[[#This Row],[Forecast Close]],{"April",4;"August",8;"December",12;"February",2;"January",1;"July",7;"June",6;"March",3;"May",5;"November",11;"October",10;"September",9}),1) -> 2013-05-01 | L17: =tblData[[#This Row],[Forecast Amount]]*tblData[[#This Row],[Probability of Sale]] -> $59,200 | M17: =SUMIF(tblData[Timeline],"<="&tblData[[#This Row],[Timeline]],tblData[Weighted Forecast]) -> $812,070
B18: Graphic Design Institute | C18: Sales Agent 2 | D18: APSA - Pacific | E18: Services | F18: $140,000 | G18: Solution Proposed | H18: 60% | I18: 2013 | J18: May | K18: =DATE(tblData[[#This Row],[Year]],LOOKUP(tblData[[#This Row],[Forecast Close]],{"April",4;"August",8;"December",12;"February",2;"January",1;"July",7;"June",6;"March",3;"May",5;"November",11;"October",10;"September",9}),1) -> 2013-05-01 | L18: =tblData[[#This Row],[Forecast Amount]]*tblData[[#This Row],[Probability of Sale]] -> $84,000 | M18: =SUMIF(tblData[Timeline],"<="&tblData[[#This Row],[Timeline]],tblData[Weighted Forecast]) -> $812,070
B19: City Power & Light | C19: Sales Agent 1 | D19: US - Southwest | E19: Support | F19: $175,000 | G19: Needs Analysis | H19: 50% | I19: 2013 | J19: June | K19: =DATE(tblData[[#This Row],[Year]],LOOKUP(tblData[[#This Row],[Forecast Close]],{"April",4;"August",8;"December",12;"February",2;"January",1;"July",7;"June",6;"March",3;"May",5;"November",11;"October",10;"September",9}),1) -> 2013-06-01 | L19: =tblData[[#This Row],[Forecast Amount]]*tblData[[#This Row],[Probability of Sale]] -> $87,500 | M19: =SUMIF(tblData[Timeline],"<="&tblData[[#This Row],[Timeline]],tblData[Weighted Forecast]) -> $946,070
B20: Humongous Insurance | C20: Sales Agent 1 | D20: APSA - Mexico | E20: Support | F20: $155,000 | G20: Sponsorship | H20: 30% | I20: 2013 | J20: June | K20: =DATE(tblData[[#This Row],[Year]],LOOKUP(tblData[[#This Row],[Forecast Close]],{"April",4;"August",8;"December",12;"February",2;"January",1;"July",7;"June",6;"March",3;"May",5;"November",11;"October",10;"September",9}),1) -> 2013-06-01 | L20: =tblData[[#This Row],[Forecast Amount]]*tblData[[#This Row],[Probability of Sale]] -> $46,500 | M20: =SUMIF(tblData[Timeline],"<="&tblData[[#This Row],[Timeline]],tblData[Weighted Forecast]) -> $946,070
B21: Coho Vineyard | C21: Sales Agent 3 | D21: Canada - East | E21: Mixture | F21: $149,000 | G21: Solution Proposed | H21: 60% | I21: 2013 | J21: July | K21: =DATE(tblData[[#This Row],[Year]],LOOKUP(tblData[[#This Row],[Forecast Close]],{"April",4;"August",8;"December",12;"February",2;"January",1;"July",7;"June",6;"March",3;"May",5;"November",11;"October",10;"September",9}),1) -> 2013-07-01 | L21: =tblData[[#This Row],[Forecast Amount]]*tblData[[#This Row],[Probability of Sale]] -> $89,400 | M21: =SUMIF(tblData[Timeline],"<="&tblData[[#This Row],[Timeline]],tblData[Weighted Forecast]) -> $1,035,470
B22: Coho Winery | C22: Sales Agent 5 | D22: Canada - West | E22: Training | F22: $142,000 | G22: Written Proposal | H22: 70% | I22: 2013 | J22: August | K22: =DATE(tblData[[#This Row],[Year]],LOOKUP(tblData[[#This Row],[Forecast Close]],{"April",4;"August",8;"December",12;"February",2;"January",1;"July",7;"June",6;"March",3;"May",5;"November",11;"October",10;"September",9}),1) -> 2013-08-01 | L22: =tblData[[#This Row],[Forecast Amount]]*tblData[[#This Row],[Probability of Sale]] -> $99,400 | M22: =SUMIF(tblData[Timeline],"<="&tblData[[#This Row],[Timeline]],tblData[Weighted Forecast]) -> $1,220,370
B23: Southridge Video | C23: Sales Agent 5 | D23: EMEA - UK | E23: Mixture | F23: $171,000 | G23: Needs Analysis | H23: 50% | I23: 2013 | J23: August | K23: =DATE(tblData[[#This Row],[Year]],LOOKUP(tblData[[#This Row],[Forecast Close]],{"April",4;"August",8;"December",12;"February",2;"January",1;"July",7;"June",6;"March",3;"May",5;"November",11;"October",10;"September",9}),1) -> 2013-08-01 | L23: =tblData[[#This Row],[Forecast Amount]]*tblData[[#This Row],[Probability of Sale]] -> $85,500 | M23: =SUMIF(tblData[Timeline],"<="&tblData[[#This Row],[Timeline]],tblData[Weighted Forecast]) -> $1,220,370
B24: Tailspin Toys | C24: Sales Agent 1 | D24: APSA - Australia | E24: Products | F24: $168,000 | G24: Solution Proposed | H24: 60% | I24: 2013 | J24: September | K24: =DATE(tblData[[#This Row],[Year]],LOOKUP(tblData[[#This Row],[Forecast Close]],{"April",4;"August",8;"December",12;"February",2;"January",1;"July",7;"June",6;"March",3;"May",5;"November",11;"October",10;"September",9}),1) -> 2013-09-01 | L24: =tblData[[#This Row],[Forecast Amount]]*tblData[[#This Row],[Probability of Sale]] -> $100,800 | M24: =SUMIF(tblData[Timeline],"<="&tblData[[#This Row],[Timeline]],tblData[Weighted Forecast]) -> $1,321,170
B25: Contoso, Ltd. | C25: Sales Agent 3 | D25: EMEA - France | E25: Mixture | F25: $172,500 | G25: Verbal Approval | H25: 90% | I25: 2013 | J25: October | K25: =DATE(tblData[[#This Row],[Year]],LOOKUP(tblData[[#This Row],[Forecast Close]],{"April",4;"August",8;"December",12;"February",2;"January",1;"July",7;"June",6;"March",3;"May",5;"November",11;"October",10;"September",9}),1) -> 2013-10-01 | L25: =tblData[[#This Row],[Forecast Amount]]*tblData[[#This Row],[Probability of Sale]] -> $155,250 | M25: =SUMIF(tblData[Timeline],"<="&tblData[[#This Row],[Timeline]],tblData[Weighted Forecast]) -> $1,563,020
B26: Litware, Inc. | C26: Sales Agent 2 | D26: APSA - Australia | E26: Prof. Services | F26: $173,200 | G26: Needs Analysis | H26: 50% | I26: 2013 | J26: October | K26: =DATE(tblData[[#This Row],[Year]],LOOKUP(tblData[[#This Row],[Forecast Close]],{"April",4;"August",8;"December",12;"February",2;"January",1;"July",7;"June",6;"March",3;"May",5;"November",11;"October",10;"September",9}),1) -> 2013-10-01 | L26: =tblData[[#This Row],[Forecast Amount]]*tblData[[#This Row],[Probability of Sale]] -> $86,600 | M26: =SUMIF(tblData[Timeline],"<="&tblData[[#This Row],[Timeline]],tblData[Weighted Forecast]) -> $1,563,020
B27: Contoso Pharmaceuticals | C27: Sales Agent 4 | D27: EMEA - Germany | E27: Products | F27: $163,500 | G27: Sponsorship | H27: 20% | I27: 2013 | J27: November | K27: =DATE(tblData[[#This Row],[Year]],LOOKUP(tblData[[#This Row],[Forecast Close]],{"April",4;"August",8;"December",12;"February",2;"January",1;"July",7;"June",6;"March",3;"May",5;"November",11;"October",10;"September",9}),1) -> 2013-11-01 | L27: =tblData[[#This Row],[Forecast Amount]]*tblData[[#This Row],[Probability of Sale]] -> $32,700 | M27: =SUMIF(tblData[Timeline],"<="&tblData[[#This Row],[Timeline]],tblData[Weighted Forecast]) -> $1,705,445
B28: Margie's Travel | C28: Sales Agent 4 | D28: US - Northeast | E28: Support | F28: $156,750 | G28: Written Proposal | H28: 70% | I28: 2013 | J28: November | K28: =DATE(tblData[[#This Row],[Year]],LOOKUP(tblData[[#This Row],[Forecast Close]],{"April",4;"August",8;"December",12;"February",2;"January",1;"July",7;"June",6;"March",3;"May",5;"November",11;"October",10;"September",9}),1) -> 2013-11-01 | L28: =tblData[[#This Row],[Forecast Amount]]*tblData[[#This Row],[Probability of Sale]] -> $109,725 | M28: =SUMIF(tblData[Timeline],"<="&tblData[[#This Row],[Timeline]],tblData[Weighted Forecast]) -> $1,705,445
B29: Consolidated Messenger | C29: Sales Agent 5 | D29: EMEA - Italy | E29: Products | F29: $155,500 | G29: Formal Approval | H29: 100% | I29: 2013 | J29: December | K29: =DATE(tblData[[#This Row],[Year]],LOOKUP(tblData[[#This Row],[Forecast Close]],{"April",4;"August",8;"December",12;"February",2;"January",1;"July",7;"June",6;"March",3;"May",5;"November",11;"October",10;"September",9}),1) -> 2013-12-01 | L29: =tblData[[#This Row],[Forecast Amount]]*tblData[[#This Row],[Probability of Sale]] -> $155,500 | M29: =SUMIF(tblData[Timeline],"<="&tblData[[#This Row],[Timeline]],tblData[Weighted Forecast]) -> $1,948,845
B30: Lucerne Publishing | C30: Sales Agent 5 | D30: APSA - Other | E30: Services | F30: $146,500 | G30: Solution Proposed | H30: 60% | I30: 2013 | J30: December | K30: =DATE(tblData[[#This Row],[Year]],LOOKUP(tblData[[#This Row],[Forecast Close]],{"April",4;"August",8;"December",12;"February",2;"January",1;"July",7;"June",6;"March",3;"May",5;"November",11;"October",10;"September",9}),1) -> 2013-12-01 | L30: =tblData[[#This Row],[Forecast Amount]]*tblData[[#This Row],[Probability of Sale]] -> $87,900 | M30: =SUMIF(tblData[Timeline],"<="&tblData[[#This Row],[Timeline]],tblData[Weighted Forecast]) -> $1,948,845
B31: Total | F31: =SUBTOTAL(109,tblData[Forecast Amount]) -> $3,659,150 | L31: =SUBTOTAL(109,tblData[Weighted Forecast]) -> $1,948,845

Sheet Forecast PivotTable
B2: ='Forecast Input'!B2 -> [Company Name]
B3: Detailed Sales Forecast
B4: Company Confidential
B30: Forecast | D30: Forecast Close
B31: Opportunity Name | C31: Year | D31: January | E31: February | F31: March | G31: April | H31: May | I31: June | J31: July | K31: August | L31: September | M31: October | N31: November | O31: December | P31: Grand Total
B32: A. Datum Corporation | C32: 2013 | D32: $135,000.00 | P32: $135,000.00
B33: Adventure Works | C33: 2013 | E33: $14,520.00 | P33: $14,520.00
B34: Alpine Ski House | C34: 2013 | F34: $32,500.00 | P34: $32,500.00
B35: Baldwin Museum of Science | C35: 2013 | G35: $44,250.00 | P35: $44,250.00
B36: Blue Yonder Airlines | C36: 2013 | H36: $59,200.00 | P36: $59,200.00
B37: City Power & Light | C37: 2013 | I37: $87,500.00 | P37: $87,500.00
B38: Coho Vineyard | C38: 2013 | J38: $89,400.00 | P38: $89,400.00
B39: Coho Winery | C39: 2013 | K39: $99,400.00 | P39: $99,400.00
B40: Consolidated Messenger | C40: 2013 | O40: $155,500.00 | P40: $155,500.00
B41: Contoso Pharmaceuticals | C41: 2013 | N41: $32,700.00 | P41: $32,700.00
B42: Contoso, Ltd. | C42: 2013 | M42: $155,250.00 | P42: $155,250.00
B43: Fabrikam, Inc. | C43: 2013 | D43: $16,600.00 | P43: $16,600.00
B44: Fourth Coffee | C44: 2013 | F44: $54,000.00 | P44: $54,000.00
B45: Graphic Design Institute | C45: 2013 | H45: $84,000.00 | P45: $84,000.00
B46: Humongous Insurance | C46: 2013 | I46: $46,500.00 | P46: $46,500.00
B47: Litware, Inc. | C47: 2013 | M47: $86,600.00 | P47: $86,600.00
B48: Lucerne Publishing | C48: 2013 | O48: $87,900.00 | P48: $87,900.00
B49: Margie's Travel | C49: 2013 | N49: $109,725.00 | P49: $109,725.00
B50: Northwind Traders | C50: 2013 | E50: $145,800.00 | P50: $145,800.00
B51: Proseware, Inc. | C51: 2013 | F51: $157,000.00 | P51: $157,000.00
B52: School of Fine Art | C52: 2013 | G52: $69,200.00 | P52: $69,200.00
B53: Southridge Video | C53: 2013 | K53: $85,500.00 | P53: $85,500.00
B54: Tailspin Toys | C54: 2013 | L54: $100,800.00 | P54: $100,800.00
B55: Grand Total | D55: $151,600.00 | E55: $160,320.00 | F55: $243,500.00 | G55: $113,450.00 | H55: $143,200.00 | I55: $134,000.00 | J55: $89,400.00 | K55: $184,900.00 | L55: $100,800.00 | M55: $241,850.00 | N55: $142,425.00 | O55: $243,400.00 | P55: $1,948,845.00
